bitfinex/quotes_ETHUSD_20250524
["timestamp","ask_amount","ask_price","bid_price","bid_amount"]
[1748107791320,3.91129189,2556.7,2556.6,43.228]
[1748107793423,3.91129189,2556.7,2556.6,16.88]
[1748107793723,3.91129189,2556.7,2556.6,43.228]
[1748107796391,3.91129189,2556.7,2556.6,31.507]
[1748107796727,3.91129189,2556.7,2556.6,43.228]
[1748107804419,3.91129189,2556.7,2556.6,43.59287895]
[1748107810460,3.91129189,2556.7,2556.6,17.24487895]
[1748107810639,11.21477741,2556.7,2556.6,43.59287895]
[1748107810956,11.21477741,2556.7,2556.6,43.228]
[1748107811763,11.21477741,2556.7,2556.6,43.59284227]
[1748107814034,11.21477741,2556.7,2556.6,31.87184227]
[1748107814265,11.21477741,2556.7,2556.6,43.59284227]
[1748107815466,11.21477741,2556.7,2556.6,43.228]
[1748107816934,11.21477741,2556.7,2556.6,43.59258536]
[1748107817336,9.12605537,2556.7,2556.6,43.59258536]
[1748107817544,9.12605537,2556.7,2556.6,43.228]
[1748107817749,9.12605537,2556.7,2556.6,43.59253079]
[1748107823174,9.12605537,2556.7,2556.6,31.87153079]
[1748107823381,9.12605537,2556.7,2556.6,43.59353079]
[1748107823774,3.91129189,2556.7,2556.6,43.59353079]
[1748107824278,4.77773758,2556.7,2556.6,43.59353079]
[1748107825475,4.77773758,2556.7,2556.6,43.229]
[1748107825835,5.59743758,2556.7,2556.6,31.495]
[1748107826061,5.59743758,2556.7,2556.6,16.88]
[1748107826267,5.59743758,2556.7,2556.6,43.217]
[1748107829780,4.77773758,2556.7,2556.6,43.217]
[1748107829961,3.91129189,2556.7,2556.6,43.217]
[1748107832392,4.69289189,2556.7,2556.6,43.217]
[1748107832890,4.69289189,2556.7,2556.6,16.88]
[1748107833084,4.69289189,2556.7,2556.6,43.217]
[1748107833404,12.69289189,2556.7,2556.6,31.495]
[1748107833681,13.55829758,2556.7,2556.6,31.495]
[1748107833882,13.55829758,2556.7,2556.6,43.217]
[1748107834087,13.55829758,2556.7,2556.6,31.495]
[1748107834088,14.10829758,2556.7,2556.6,31.495]
[1748107834584,14.10829758,2556.7,2556.6,16.88]
[1748107834585,18.22129758,2556.7,2556.6,16.88]
[1748107835351,14.10829758,2556.7,2556.6,16.88]
[1748107835776,15.9431576,2556.7,2556.6,16.88]
[1748107836979,15.9431576,2556.7,2556.6,31.497]
[1748107838105,3.91328167,2555.4,2555.3,1.83486002]
[1748107838300,3.91328167,2555.4,2555.3,16.45186002]
[1748107838660,3.91328167,2555.4,2555.3,16.8155259]
[1748107838861,3.91328167,2555.4,2555.3,2.1985259]
[1748107839062,3.91328167,2555.4,2555.3,14.98166588]
[1748107839276,3.91328167,2555.4,2555.3,43.58866588]
[1748107839489,3.91328167,2555.4,2555.3,17.24666588]
[1748107839711,3.91328167,2555.4,2555.3,43.58866588]
[1748107841385,3.91328167,2555.4,2555.3,43.225]
[1748107842697,3.91328167,2555.4,2555.3,31.501]
[1748107842906,3.91328167,2555.4,2555.3,43.226]
[1748107843291,3.91328167,2555.4,2555.3,31.501]
[1748107843503,3.91328167,2555.4,2555.3,43.226]
[1748107844203,3.91328167,2555.4,2555.3,16.883]
[1748107844408,3.91328167,2555.4,2555.3,43.227]
[1748107846509,3.91328167,2555.4,2555.3,44.0053]
[1748107847077,3.91328167,2555.4,2555.3,44.36834641]
[1748107854119,3.91328167,2555.4,2555.3,32.64334641]
[1748107854321,3.91328167,2555.4,2555.3,44.36934641]
[1748107854616,3.91328167,2555.4,2555.3,32.64334641]
[1748107854916,3.91328167,2555.4,2555.3,44.36934641]
[1748107855082,3.91328167,2555.4,2555.3,44.0063]
[1748107855683,3.91328167,2555.4,2555.3,43.228]
[1748107855885,5.64797974,2555.4,2555.3,31.49]
[1748107856121,5.60870146,2555.4,2555.3,43.216]
[1748107857723,3.91328167,2555.4,2555.3,43.216]
[1748107862708,3.91328167,2555.4,2555.3,31.49]
[1748107862937,3.91328167,2555.4,2555.3,43.217]
[1748107864145,3.91328167,2555.4,2555.3,31.49]
[1748107864344,3.91328167,2555.4,2555.3,43.217]
[1748107865010,3.91328167,2555.4,2555.3,44.0482]
[1748107869503,3.90994998,2555.4,2555.3,44.0482]
[1748107869828,3.90994998,2555.4,2555.3,43.217]
[1748107872136,3.90994998,2555.4,2555.3,31.49]
[1748107872289,3.90994998,2555.4,2555.3,43.217]
[1748107874220,3.90994998,2555.4,2555.3,31.49]
[1748107874432,5.9940353,2555.4,2555.3,43.217]
[1748107874631,5.9940353,2555.4,2555.3,43.218]
[1748107879438,11.20879878,2555.4,2555.3,43.218]
[1748107883341,9.12471346,2555.4,2555.3,43.218]
[1748107883905,9.12471346,2555.4,2555.3,16.883]
[1748107884252,9.93061346,2555.4,2555.3,43.207]
[1748107884408,9.93061346,2555.4,2555.3,16.883]
[1748107884805,9.93061346,2555.4,2555.3,43.207]
[1748107885030,11.49847478,2555.4,2555.3,43.207]
[1748107886110,11.49847478,2555.4,2555.3,31.479]
[1748107886352,11.49847478,2555.4,2555.3,43.207]
[1748107889311,9.93061346,2555.4,2555.3,43.207]
[1748107891148,9.93061346,2555.4,2555.3,16.883]
[1748107891450,17.93061346,2555.4,2555.3,43.21]
[1748107896649,17.93061346,2555.4,2555.3,16.883]
[1748107896854,17.93061346,2555.4,2555.3,43.211]
[1748107897031,21.32347478,2555.4,2555.3,43.211]
[1748107902266,3.9146604,2554.5,2554.1,0.05]
[1748107902419,11.91496691,2554.3,2554.2,43.9853]
[1748107903022,11.91496691,2554.3,2554.2,32.2553]
[1748107903224,11.91496691,2554.3,2554.2,43.9853]
[1748107914486,11.91496691,2554.3,2554.2,43.22]
[1748107915865,11.91496691,2554.3,2554.2,31.49]
[1748107916061,17.12973039,2554.3,2554.2,43.222]
[1748107916264,17.96083039,2554.3,2554.2,16.891]
[1748107916448,32.80820686,2554.3,2554.2,43.214]
[1748107917888,32.80820686,2554.3,2554.2,31.482]
[1748107918189,32.80820686,2554.3,2554.2,43.214]
[1748107919098,32.80820686,2554.3,2554.2,31.482]
[1748107920697,17.12988367,2554.2,2554.1,11.782]
[1748107920898,21.07987676,2554.2,2554.1,26.375]
[1748107921296,21.07987676,2554.2,2554.1,14.643]
[1748107921469,21.84277676,2554.2,2554.1,0.05]
[1748107921669,21.84277676,2554.2,2554.1,26.377]
[1748107923201,21.84277676,2554.2,2554.1,14.643]
[1748107924781,21.84277676,2554.2,2554.1,0.05]
[1748107925075,21.84277676,2554.2,2554.1,14.644]
[1748107926295,32.09277676,2554.2,2554.1,26.378]
[1748107929076,32.09277676,2554.2,2554.1,43.277]
[1748107929274,19.37988367,2554.2,2554.1,43.277]
[1748107929792,27.37988367,2554.2,2554.1,43.277]
[1748107931181,9.12988367,2554.2,2554.1,45.92186002]
[1748107931834,9.12988367,2554.2,2554.1,44.087]
[1748107931835,17.12988367,2554.2,2554.1,44.087]
[1748107933738,17.12988367,2554.2,2554.1,45.92186002]
[1748107934039,9.12988367,2554.2,2554.1,45.92186002]
[1748107935245,3.91512019,2554.2,2554.1,44.087]
[1748107935539,3.91512019,2554.2,2554.1,44.088]
[1748107935927,3.91512019,2554.2,2554.1,32.353]
[1748107936122,11.91512019,2554.2,2554.1,17.759]
[1748107936326,11.91512019,2554.2,2554.1,16.949]
[1748107936327,17.12988367,2554.2,2554.1,16.949]
[1748107936646,17.12988367,2554.2,2554.1,43.277]
[1748107941635,17.12988367,2554.2,2554.1,44.087]
[1748107949225,17.12988367,2554.2,2554.1,44.078]
[1748107952125,9.12988367,2554.2,2554.1,45.91286002]
[1748107952937,3.91512019,2554.2,2554.1,45.91286002]
[1748107953633,3.91512019,2554.2,2554.1,46.46286002]
[1748107960361,3.91512019,2554.2,2554.1,34.72886002]
[1748107960535,3.91512019,2554.2,2554.1,46.46086002]
[1748107965635,3.91512019,2554.2,2554.1,34.72886002]
[1748107965838,3.91512019,2554.2,2554.1,46.46086002]
[1748107969371,3.91512019,2554.2,2554.1,44.624]
[1748107979445,3.91467631,2554.5,2554.2,0.55]
[1748107979650,3.91489543,2554.4,2554.3,2.38486002]
[1748107981477,3.91470746,2554.5,2554.4,0.55]
[1748107981780,3.91389432,2555.0,2554.4,13.0961]
[1748107981955,3.91430916,2554.8,2554.7,2.38486002]
[1748107982165,3.91430916,2554.8,2554.7,28.69186002]
[1748107983151,3.91430916,2554.8,2554.7,29.50696002]
[1748107987380,3.91404751,2554.9,2554.8,0.55]
[1748107988990,3.91395866,2555.0,2554.8,0.55]
[1748107989185,3.91380032,2555.1,2554.9,1.83486002]
[1748107989487,3.91380032,2555.1,2555.0,11.73]
[1748107991871,3.91380032,2555.1,2555.0,28.621]
[1748107996098,3.91380032,2555.1,2555.0,16.891]
[1748107996302,3.91380032,2555.1,2555.0,28.62]
[1748107996603,3.91380032,2555.1,2555.0,43.192]
[1748107999205,3.91380032,2555.1,2555.0,51.192]
[1748108000602,5.48244174,2555.1,2555.0,31.463]
[1748108000995,5.48244174,2555.1,2555.0,43.191]
[1748108001667,5.48244174,2555.1,2555.0,51.191]
[1748108002282,3.91380032,2555.1,2555.0,51.191]
[1748108002488,3.91380032,2555.1,2555.0,53.57586002]
[1748108004007,3.91380032,2555.1,2555.0,25.441]
[1748108004187,3.91380032,2555.1,2555.0,51.733]
[1748108007806,3.91380032,2555.1,2555.0,53.56786002]
[1748108008209,5.21476348,2555.4,2555.1,8.55]
[1748108008414,3.91358797,2555.2,2555.1,9.321]
[1748108009617,3.91358797,2555.2,2555.1,11.15586002]
[1748108016523,3.91358797,2555.2,2555.1,10.38486002]
[1748108016689,3.91358797,2555.2,2555.1,34.289]
[1748108017021,4.72178797,2555.2,2555.1,34.289]
[1748108017598,4.72178797,2555.2,2555.1,22.562]
[1748108017792,4.72178797,2555.2,2555.1,34.289]
[1748108019520,4.72178797,2555.2,2555.1,8.0]
[1748108019850,4.72178797,2555.2,2555.1,26.289]
[1748108019851,6.10679637,2555.2,2555.1,26.289]
[1748108020147,6.10679637,2555.2,2555.1,34.289]
[1748108021136,4.72178797,2555.2,2555.1,34.289]
[1748108021685,4.72178797,2555.2,2555.1,22.562]
[1748108021892,4.72178797,2555.2,2555.1,34.289]
[1748108023717,9.93655145,2555.2,2555.1,34.289]
[1748108029537,9.93655145,2555.2,2555.1,34.29]
[1748108038726,9.12835145,2555.2,2555.1,34.29]
[1748108041854,9.12835145,2555.2,2555.1,51.18]
[1748108044561,9.12835145,2555.2,2555.1,39.452]
[1748108044740,9.12835145,2555.2,2555.1,51.181]
[1748108056834,9.12835145,2555.2,2555.1,53.18956137]
[1748108057039,9.12835145,2555.2,2555.1,54.34946002]
[1748108057040,5.21476348,2555.2,2555.1,54.34946002]
[1748108057758,9.12835145,2555.2,2555.1,54.34946002]
[1748108059056,3.91358797,2555.2,2555.1,54.34946002]
[1748108069015,3.91358797,2555.2,2555.1,42.62046002]
[1748108069200,3.91358797,2555.2,2555.1,52.5126]
[1748108082832,3.91358797,2555.2,2555.1,40.7856]
[1748108082995,3.91358797,2555.2,2555.1,52.5126]
[1748108083725,3.91358797,2555.2,2555.1,53.98077131]
[1748108084103,3.91358797,2555.2,2555.1,40.92017131]
[1748108084317,3.91358797,2555.2,2555.1,51.179]
[1748108084697,3.91358797,2555.2,2555.1,39.435]
[1748108084997,5.52569273,2555.2,2555.1,43.162]
[1748108086141,5.52569273,2555.2,2555.1,31.435]
[1748108086334,5.52569273,2555.2,2555.1,43.162]
[1748108086532,4.66758797,2555.2,2555.1,43.162]
[1748108087737,4.66758797,2555.2,2555.1,51.162]
[1748108089450,4.66758797,2555.2,2555.1,39.435]
[1748108089752,4.66758797,2555.2,2555.1,51.162]
[1748108098451,3.91358797,2555.2,2555.1,51.162]
[1748108103568,5.48240779,2555.2,2555.1,16.89]
[1748108103782,5.48240779,2555.2,2555.1,43.155]
[1748108103992,5.48240779,2555.2,2555.1,51.155]
[1748108104488,3.91358797,2555.2,2555.1,51.155]
[1748108106678,3.91358797,2555.2,2555.1,39.427]
[1748108106977,3.91358797,2555.2,2555.1,51.155]
[1748108110991,3.91358797,2555.2,2555.1,51.705]
[1748108111167,3.91358797,2555.2,2555.1,52.4815]
[1748108114882,3.91358797,2555.2,2555.1,40.7535]
[1748108115083,3.91358797,2555.2,2555.1,52.4805]
[1748108120293,3.91358797,2555.2,2555.1,40.7535]
[1748108120593,3.91358797,2555.2,2555.1,52.4805]
[1748108125282,3.91358797,2555.2,2555.1,51.704]
[1748108129014,3.9135026,2555.3,2555.2,8.55]
[1748108129183,5.21476348,2555.6,2555.2,11.15189755]
[1748108129384,3.91335855,2555.4,2555.2,11.15189755]
[1748108129568,3.91335855,2555.4,2555.3,14.527]
[1748108129768,3.91312854,2555.5,2555.4,8.55]
[1748108129994,3.91312854,2555.5,2555.4,20.277]
[1748108134426,3.91312854,2555.5,2555.4,37.163]
[1748108137753,3.91312854,2555.5,2555.4,38.63088887]
[1748108139446,3.91312854,2555.5,2555.4,53.15688887]
[1748108143060,3.91312854,2555.5,2555.4,39.962]
[1748108143365,3.91312854,2555.5,2555.4,51.688]
[1748108146558,5.53752771,2555.5,2555.4,39.412]
[1748108146766,5.53752771,2555.5,2555.4,51.138]
[1748108154456,4.67552854,2555.5,2555.4,51.138]
[1748108154654,0.7624,2555.9,2555.5,0.55]
[1748108154978,3.91251613,2555.9,2555.8,2.23738887]
[1748108155177,3.91244685,2556.0,2555.8,8.0]
[1748108155368,3.91244685,2556.0,2555.9,34.253]
[1748108158283,3.91266922,2555.8,2555.7,8.93998041]
[1748108158587,3.91266922,2555.8,2555.7,35.92442889]
[1748108158949,3.91266922,2555.8,2555.7,9.68242889]
[1748108159149,3.91266922,2555.8,2555.7,35.92442889]
[1748108160429,3.91266922,2555.8,2555.4,18.72030847]
[1748108160584,3.91312854,2555.5,2555.4,16.886]
[1748108160775,3.91312854,2555.5,2555.4,24.886]
[1748108160971,3.91312854,2555.5,2555.4,51.128]
[1748108169002,9.12776236,2555.6,2555.5,8.0]
[1748108169003,5.21476348,2555.6,2555.5,8.0]
[1748108169217,5.21476348,2555.6,2555.5,8.55]
[1748108169416,9.1277389,2555.6,2555.5,8.55]
[1748108170012,5.21476348,2555.6,2555.5,8.55]
[1748108170192,4.00739051,2555.6,2555.5,10.22627572]
[1748108170506,1.97004097,2556.4,2555.6,1.3472]
[1748108170676,3.9125492,2555.9,2555.8,8.55]
[1748108170876,3.9125492,2555.9,2555.8,24.90130847]
[1748108171196,3.91251613,2555.9,2555.8,24.90130847]
[1748108171592,1.97004097,2556.4,2556.0,0.55]
[1748108171763,1.97004097,2556.4,2556.1,19.726]
[1748108171764,3.91205695,2556.2,2556.1,19.726]
[1748108171964,3.91205695,2556.2,2556.1,21.56030847]
[1748108173385,3.91176169,2556.4,2556.3,1.3686]
[1748108173683,3.91176169,2556.4,2556.3,42.60290847]
[1748108177983,3.91176169,2556.4,2556.3,54.32690847]
[1748108180722,3.91176169,2556.4,2556.3,53.50830847]
[1748108188264,3.91176169,2556.4,2556.3,51.672]
[1748108189318,4.76007043,2556.9,2556.5,0.55]
[1748108189479,3.91144488,2556.6,2556.5,1.3383]
[1748108189687,3.91144488,2556.6,2556.5,11.17260847]
[1748108194889,0.05,2556.9,2556.7,0.55]
[1748108195088,3.91113892,2556.8,2556.7,2.38430847]
[1748108195401,3.91113892,2556.8,2556.7,36.61130847]
[1748108197016,3.96099814,2556.9,2556.8,8.55]
[1748108200699,3.96099814,2556.9,2556.8,8.75040367]
[1748108208427,3.96099814,2556.9,2556.8,25.62640367]
[1748108210028,3.96099814,2556.9,2556.8,37.34540367]
[1748108218935,3.96099814,2556.9,2556.8,25.62640367]
[1748108219121,3.96099814,2556.9,2556.8,37.34540367]
[1748108222249,4.76799814,2556.9,2556.8,24.876]
[1748108222403,4.76799814,2556.9,2556.8,51.093]
[1748108225332,3.96099814,2556.9,2556.8,53.47730847]
[1748108225533,3.73688177,2557.0,2556.9,0.55]
[1748108225847,3.91075495,2557.1,2556.9,8.55]
[1748108226024,3.91075495,2557.1,2557.0,0.55]
[1748108226222,0.7815,2557.5,2557.1,0.55]
[1748108226555,0.7815,2557.5,2557.0,0.55]
[1748108226556,3.91034031,2557.4,2557.3,8.0]
[1748108226717,3.91034031,2557.4,2557.3,22.498]
[1748108229059,3.91034031,2557.4,2557.1,0.39269377]
[1748108229060,3.91052713,2557.2,2557.1,0.94269377]
[1748108229246,3.91052713,2557.2,2557.1,36.92626315]
[1748108229559,3.91031848,2557.4,2557.2,8.55]
[1748108231371,0.05,2557.9,2557.4,0.55]
[1748108231540,0.05,2557.9,2557.6,8.55]
[1748108231739,4.70480982,2557.8,2557.7,22.497]
[1748108232363,3.90960982,2557.8,2557.7,22.497]
[1748108238612,3.90960982,2557.8,2557.7,34.214]
[1748108241314,4.74280982,2557.8,2557.7,8.0]
[1748108241476,5.52971856,2557.8,2557.7,8.0]
[1748108241810,5.52971856,2557.8,2557.7,34.212]
[1748108243227,5.52971856,2557.8,2557.7,22.495]
[1748108243377,5.52971856,2557.8,2557.7,34.211]
[1748108244815,5.52971856,2557.8,2557.7,8.0]
[1748108245008,5.52971856,2557.8,2557.7,34.211]
[1748108245877,4.74280982,2557.8,2557.7,34.211]
[1748108246081,3.90960982,2557.8,2557.7,34.211]
[1748108247112,3.90960982,2557.8,2557.7,34.761]
[1748108248244,3.90960982,2557.8,2557.7,51.633]
[1748108252758,0.05,2557.9,2557.8,8.55]
[1748108257871,0.05,2557.9,2557.8,8.75093371]
[1748108259066,3.95945697,2557.9,2557.8,8.75093371]
[1748108264781,4.73475697,2557.9,2557.8,22.68993371]
[1748108264983,4.73475697,2557.9,2557.8,34.40493371]
[1748108269248,4.73475697,2557.9,2557.8,34.204]
[1748108279606,3.95945697,2557.9,2557.8,34.204]
[1748108290327,3.95945697,2557.9,2557.8,51.074]
[1748108292343,4.78525697,2557.9,2557.8,24.87]
[1748108292507,4.78525697,2557.9,2557.8,51.07]
[1748108292508,5.57213513,2557.9,2557.8,51.07]
[1748108293109,5.93804406,2557.9,2557.8,51.07]
[1748108293533,5.1511659,2557.9,2557.8,51.07]
[1748108293735,3.95945697,2557.9,2557.8,51.07]
[1748108305039,3.95945697,2557.9,2557.8,51.62]
[1748108313293,3.95945697,2557.9,2557.8,51.615]
[1748108315153,0.05,2557.9,2557.8,52.375]
[1748108315760,3.95945697,2557.9,2557.8,52.375]
[1748108317202,3.93494842,2557.9,2557.8,52.375]
[1748108317391,3.82331926,2557.9,2557.8,52.375]
[1748108317597,3.75500648,2557.9,2557.8,52.375]
[1748108321808,0.05,2558.9,2558.0,7.03674744]
[1748108322118,0.05,2558.9,2557.9,1.3812]
[1748108322119,1.61233338,2559.9,2559.4,4.14244916]
[1748108322261,1.61233338,2559.9,2559.6,4.0661744]
[1748108322464,1.61233338,2559.9,2559.6,10.49639483]
[1748108322791,0.05,2559.9,2559.6,25.68751102]
[1748108323307,0.05,2559.9,2559.6,26.06056204]
[1748108324015,0.05,2559.9,2559.6,27.89189866]
[1748108324171,0.05,2559.9,2559.8,15.72857291]
[1748108324571,0.05,2559.9,2559.8,27.44257291]
[1748108324771,0.05,2559.9,2559.8,27.83667848]
[1748108325182,0.05,2559.9,2559.8,22.48944219]
[1748108325675,0.05,2559.9,2559.8,26.00534186]
[1748108326094,0.05,2559.9,2559.8,14.29134186]
[1748108326284,0.05,2559.9,2559.8,26.00234186]
[1748108328723,0.05,2559.9,2559.8,26.79474186]
[1748108328909,0.05,2559.9,2559.8,28.62607848]
[1748108329093,0.05,2559.9,2559.8,59.95807848]
[1748108331050,0.05,2559.9,2559.8,58.12374186]
[1748108331396,0.05,2559.9,2559.8,56.29240524]
[1748108332266,0.05,2559.9,2559.8,13.25240524]
[1748108332417,0.05,2559.9,2559.8,24.95840524]
[1748108335311,0.05,2559.9,2559.8,24.95740524]
[1748108335736,0.05,2559.9,2559.8,13.25240524]
[1748108335933,0.05,2559.9,2559.8,24.95740524]
[1748108338449,3.89450158,2560.5,2559.9,12.06565845]
[1748108338823,3.90534453,2560.6,2560.1,8.55]
[1748108339228,3.90534453,2560.6,2560.4,0.55]
[1748108339448,3.9054872,2560.5,2560.4,0.55]
[1748108340215,4.66663974,2560.4,2560.3,8.55]
[1748108340413,4.66663974,2560.4,2560.3,34.72]
[1748108341055,4.66663974,2560.4,2560.3,8.55]
[1748108341262,4.66663974,2560.4,2560.3,34.72]
[1748108342020,4.66663974,2560.4,2560.3,8.55]
[1748108342222,4.66663974,2560.4,2560.3,34.72]
[1748108344474,4.66663974,2560.4,2560.3,22.778]
[1748108344671,4.66663974,2560.4,2560.3,34.481]
[1748108344836,3.90579228,2560.3,2560.2,16.854]
[1748108345043,4.66599228,2560.3,2560.2,51.335]
[1748108345676,0.7602,2560.3,2560.2,51.885]
[1748108345874,4.66599228,2560.3,2560.2,51.885]
[1748108346855,4.66599228,2560.3,2560.2,24.854]
[1748108347063,4.66599228,2560.3,2560.2,51.335]
[1748108350497,4.66599228,2560.3,2560.2,51.335]
[1748108351280,4.66599228,2560.3,2560.2,51.885]
[1748108352004,4.66599228,2560.3,2560.2,40.54603802]
[1748108352150,4.66599228,2560.3,2560.2,52.62175753]
[1748108352489,4.66599228,2560.3,2560.2,52.28893014]
[1748108352998,4.66599228,2560.3,2560.2,25.80793014]
[1748108353151,4.66599228,2560.3,2560.2,52.28893014]
[1748108354952,3.90567703,2560.4,2560.3,8.0]
[1748108355152,3.90567703,2560.4,2560.3,8.21717261]
[1748108355350,3.90567703,2560.4,2560.3,8.58121063]
[1748108355790,3.90567703,2560.4,2560.3,35.06321063]
[1748108355995,3.90567703,2560.4,2560.3,35.43593014]
[1748108356507,3.90567703,2560.4,2560.3,35.43586329]
[1748108358471,3.90567703,2560.4,2560.3,35.07189212]
[1748108358803,3.90567703,2560.4,2560.3,35.43587419]
[1748108359380,4.71706285,2560.5,2560.4,0.55]
[1748108359583,4.71706285,2560.5,2560.4,0.91398207]
[1748108360210,4.71706285,2560.5,2560.4,1.50387419]
[1748108361209,3.90543277,2560.6,2560.4,1.50387419]
[1748108361210,3.9053904,2560.6,2560.4,1.50387419]
[1748108361410,0.8266,2560.7,2560.4,1.50387419]
[1748108361568,3.90544106,2560.6,2560.5,0.91398207]
[1748108362005,3.90544106,2560.6,2560.5,1.13115468]
[1748108362203,3.90544106,2560.6,2560.5,35.61215468]
[1748108362580,3.90544106,2560.6,2560.5,35.98487419]
[1748108364311,3.90544106,2560.6,2560.5,8.95387419]
[1748108364510,5.59576598,2560.6,2560.5,35.43487419]
[1748108365279,5.59576598,2560.6,2560.5,35.06215468]
[1748108365511,5.59576598,2560.6,2560.5,8.58115468]
[1748108365678,5.59576598,2560.6,2560.5,35.06215468]
[1748108367213,5.59576598,2560.6,2560.5,23.35915468]
[1748108367377,5.59576598,2560.6,2560.5,34.84498207]
[1748108368401,5.59576598,2560.6,2560.5,8.36398207]
[1748108368601,5.59576598,2560.6,2560.5,34.84498207]
[1748108369808,4.73204106,2560.6,2560.5,34.84498207]
[1748108371206,7.41343157,2560.6,2560.5,34.84498207]
[1748108372315,7.41343157,2560.6,2560.5,8.36398207]
[1748108372518,7.41343157,2560.6,2560.5,34.84698207]
[1748108373419,7.41343157,2560.6,2560.5,8.36398207]
[1748108373716,8.54529554,2560.6,2560.5,34.84698207]
[1748108375719,8.54529554,2560.6,2560.5,34.93498207]
[1748108377589,8.54529554,2560.6,2560.5,26.93498207]
[1748108378006,4.68103974,2560.4,2560.3,8.0]
[1748108378190,4.68103974,2560.4,2560.3,22.867]
[1748108378421,6.31156449,2560.4,2560.3,34.93500065]
[1748108382542,3.90579228,2560.3,2560.2,16.854]
[1748108382714,4.68119228,2560.3,2560.2,31.722]
[1748108382908,4.68119228,2560.3,2560.2,43.79077732]
[1748108383109,7.36258279,2560.3,2560.2,43.79077732]
[1748108385353,7.36258279,2560.3,2560.2,17.21777732]
[1748108385354,9.04300874,2560.3,2560.2,17.21777732]
[1748108385502,9.04300874,2560.3,2560.2,43.428]
[1748108387752,9.04300874,2560.3,2560.2,16.854]
[1748108387927,9.04300874,2560.3,2560.2,43.428]
[1748108389885,9.04300874,2560.3,2560.2,16.854]
[1748108390164,9.04300874,2560.3,2560.2,43.429]
[1748108391277,9.04300874,2560.3,2560.2,16.854]
[1748108391461,9.04300874,2560.3,2560.2,43.43]
[1748108392871,9.04300874,2560.3,2560.2,51.43]
[1748108395273,9.04300874,2560.3,2560.2,39.724]
[1748108395478,9.04300874,2560.3,2560.2,51.43]
[1748108395652,9.04300874,2560.3,2560.2,39.724]
[1748108395985,9.04300874,2560.3,2560.2,51.43]
[1748108397071,9.04300874,2560.3,2560.2,24.854]
[1748108397270,9.04300874,2560.3,2560.2,51.43]
[1748108399242,7.36258279,2560.3,2560.2,51.43]
[1748108402456,7.36258279,2560.3,2560.2,39.724]
[1748108402653,7.36258279,2560.3,2560.2,51.43]
[1748108405551,6.58718279,2560.3,2560.2,51.43]
[1748108405954,6.58718279,2560.3,2560.2,51.79420421]
[1748108406289,8.92742085,2560.3,2560.2,51.79420421]
[1748108407290,8.92742085,2560.3,2560.2,17.21820421]
[1748108407593,9.75712085,2560.3,2560.2,43.295]
[1748108409903,9.75712085,2560.3,2560.2,16.854]
[1748108410072,20.00712085,2560.3,2560.2,43.295]
[1748108416911,20.00712085,2560.3,2560.2,31.589]
[1748108417112,20.00712085,2560.3,2560.2,43.297]
[1748108419627,19.17742085,2560.3,2560.2,43.297]
[1748108426632,27.17742085,2560.3,2560.2,43.297]
[1748108427533,19.17742085,2560.3,2560.2,43.297]
[1748108427706,16.83718279,2560.3,2560.2,43.297]
[1748108430344,6.58718279,2560.3,2560.2,43.297]
[1748108443271,6.58718279,2560.3,2560.2,44.1217]
[1748108443623,6.58718279,2560.3,2560.2,44.4858499]
[1748108443856,6.58718279,2560.3,2560.2,44.70433909]
[1748108447178,6.58718279,2560.3,2560.2,52.70433909]
[1748108447836,3.90579228,2560.3,2560.2,52.70433909]
[1748108459785,2.68139051,2560.8,2560.3,8.0]
[1748108460032,3.90533468,2560.6,2560.5,8.0]
[1748108460141,3.90517426,2560.8,2560.6,8.0]
[1748108460348,3.90517426,2560.8,2560.7,22.9991499]
[1748108460646,3.90517426,2560.8,2560.7,24.01443909]
[1748108461498,3.90517426,2560.8,2560.7,23.7959499]
[1748108462894,3.90517426,2560.8,2560.7,24.01395645]
[1748108463855,3.90517426,2560.8,2560.7,24.18510943]
[1748108467200,3.90517426,2560.8,2560.7,24.40303771]
[1748108467760,3.90517426,2560.8,2560.7,24.18510943]
[1748108469059,3.90517426,2560.8,2560.7,24.40304362]
[1748108469805,3.90517426,2560.8,2560.7,36.02404362]
[1748108469993,3.90517426,2560.8,2560.7,35.80610943]
[1748108470798,3.90517426,2560.8,2560.7,9.55010943]
[1748108471103,3.90517426,2560.8,2560.7,34.6201499]
[1748108472614,3.90517426,2560.8,2560.7,34.83826797]
[1748108474120,3.90517426,2560.8,2560.7,8.58226797]
[1748108474293,3.90517426,2560.8,2560.7,34.83826797]
[1748108474792,3.90517426,2560.8,2560.7,23.13526797]
[1748108474793,5.34980069,2560.8,2560.7,23.13526797]
[1748108474979,6.16080069,2560.8,2560.7,34.83726797]
[1748108475170,6.16080069,2560.8,2560.7,26.255]
[1748108476626,3.90579228,2560.3,2560.2,17.404]
[1748108476925,3.90579228,2560.3,2560.2,52.02279651]
[1748108477424,3.90579228,2560.3,2560.2,52.24107519]
[1748108478018,3.90579228,2560.3,2560.2,40.53807519]
[1748108478317,3.90579228,2560.3,2560.2,52.24107519]
[1748108485131,3.85579228,2560.3,2560.2,52.24107519]
[1748108490407,3.85579228,2560.3,2560.2,52.61397167]
[1748108490740,3.85579228,2560.3,2560.2,40.91097167]
[1748108490903,3.85579228,2560.3,2560.2,52.61497167]
[1748108491818,3.85579228,2560.3,2560.2,25.80897167]
[1748108492023,3.85579228,2560.3,2560.2,52.06597167]
[1748108492762,3.85579228,2560.3,2560.2,51.69307519]
[1748108493131,3.59815996,2560.3,2560.2,54.89134726]
[1748108495065,3.59815996,2560.3,2560.2,54.67306858]
[1748108498991,3.59815996,2560.3,2560.2,51.47479651]
[1748108499670,3.59815996,2560.3,2560.2,25.21779651]
[1748108499878,3.59815996,2560.3,2560.2,51.45179651]
[1748108500051,3.59815996,2560.3,2560.2,39.74779651]
[1748108500374,3.59815996,2560.3,2560.2,51.45179651]
[1748108501581,3.59815996,2560.3,2560.2,17.21779651]
[1748108501885,5.1428208,2560.3,2560.2,31.74779651]
[1748108502177,5.10354252,2560.3,2560.2,43.088]